Cogmind - Beta 11.1 @@@ ROGUE MODE // 2022.10.16 @ 18:01:54 Player: DuckBoy Result: Destroyed self with Sigix Terminator Performance ------------- Evolutions (9) 4500 Regions Visited (24) 4800 Robots Destroyed (295) 1475 Value Destroyed (13570) 13570 Prototype IDs (30) 600 Alien Tech Used (3) 600 Bonus (11960) 11960 TOTAL SCORE: 37505 Bonus ------- High Alert Combat Kills 1380 Follower Combat Kills 3045 Entered Garrisons 400 Used RIF Installer 1000 Entered DSFs 1000 Network Hubs Disabled 400 Met Data Miner 300 Built Enhanced Grunts 300 A7 Reached Mainframe 300 Met R17 at Cetus 500 Met R17 at Research 2000 Met Sigix 2000 Friendly Fire -665 Cogmind --------- Core Integrity 0/1600 Matter 267/300 Energy 94/100 System Corruption 34% Temperature Cool (0) Movement Core (50) Location -1/Access Parts ------- > --- POWER (3) -------- (None) > --- PROPULSION (6) --- (None) > --- UTILITY (12) ----- Advanced Coolant Injector Advanced Terrain Scan Processor Advanced Target Analyzer Improved Hacking Suite System Shield Improved System Shield > --- WEAPON (4) ------- Nanosword > --- INVENTORY (5) ---- Compact HERF Cannon Sigix Containment Pod Peak State ------------ > --- POWER ------------ Light Antimatter Reactor Light Antimatter Reactor Quantum Reactor > --- PROPULSION ------- Improved Heavy Treads Advanced Heavy Treads Advanced Heavy Treads > --- UTILITY ---------- Advanced Heat Sink Experimental Heat Sink High-capacity Storage Unit Advanced Sensor Array Layered Heavy Armor Plating Layered Heavy Armor Plating Layered Heavy Armor Plating Hacking Suite Improved Hacking Suite > --- WEAPON ----------- Quantum Rifle Quantum Rifle Compact HERF Cannon Plasma Lance > --- INVENTORY -------- Matter Drive Biometal Medium Treads Armored Heavy Treads Impulse Thruster Array Impulse Thruster Array Advanced Coolant Injector Layered Heavy Armor Plating Subatomic Replicator Sigix Terminator Advanced Datajack Improved Remote Datajack Sigix Containment Pod [Rating: 181] Favorites ----------- Power Improved Deuterium Engine Engine Improved Deuterium Engine Power Core Light Nuclear Core Reactor Micro Antimatter Reactor Propulsion Light Treads Treads Light Treads Leg Enhanced Flexi-carbon Leg Wheel Wheel Hover Unit Improved Antigrav System Flight Unit Impulse Thruster Array Utility Advanced Heat Sink Device Advanced Heat Sink Storage High-capacity Storage Unit Processor Advanced Visual Processing Unit Hackware Improved Hacking Suite Protection Improved Medium Armor Plating Artifact Phase Armor Weapon High-powered Shock Rifle Energy Gun High-powered Shock Rifle Energy Cannon Proton Cannon Ballistic Gun Autogun Ballistic Cannon Mass Driver Launcher Shock Bomb Launcher Special Weapon Improved Remote Datajack Slashing Weapon Nanosword Piercing Weapon Plasma Lance Special Melee Weapon Advanced Datajack Build | -11 -10 -9 -8 -7 -7 -6 -6 -6 -6 -6 -6 -5 -5 -5 -5 -5 -5 -5 -4 -3 -3 -2 -2 -1 ------- Run | Scr Mat Mat Mat Fac DSF Fac Gar Fac Low Low Dat Pro Fac Gar Ext Cet Arc Hub Fac Res Qua Res DSF Acc Slots Evolved 18 | . . 2 2 2 . 2 . . . . . . 2 . . . . . 2 2 . 2 . 2 Power 2 | . . . . 1 . 1 . . . . . . . . . . . . . . . . . . Propulsion 4 | . . 1 . 1 . . . . . . . . 1 . . . . . . . . 1 . . Utility 10 | . . . 2 . . 1 . . . . . . 1 . . . . . 2 2 . . . 2 Weapon 2 | . . 1 . . . . . . . . . . . . . . . . . . . 1 . . Parts Attached 417 | 4 7 11 18 . 16 16 38 . 4 5 3 10 32 10 16 9 6 20 38 32 43 5 3 71 Power 50 | 1 1 1 1 . 2 2 5 . . 3 . 3 2 2 1 1 . 3 5 4 2 1 . 10 Engine 16 | 1 1 1 1 . 2 1 3 . . 3 . 3 . . . . . . . . . . . . Core 12 | . . . . . . 1 2 . . . . . 2 2 1 . . . 4 . . . . . Reactor 22 | . . . . . . . . . . . . . . . . 1 . 3 1 4 2 1 . 10 Propulsion 95 | 2 . 7 7 . 4 3 6 . . 1 . 1 8 2 6 . 3 8 7 5 9 1 . 15 Treads 72 | 1 . 5 7 . 4 3 6 . . 1 . 1 8 2 6 . 3 7 5 3 7 1 . 2 Leg 2 | . . . . . . . . . . . . . . . . . . 1 1 . . . . . Wheel 4 | 1 . 2 . . . . . . . . . . . . . . . . . . 1 . . . Hover 10 | . . . . . . . . . . . . . . . . . . . . . . . . 10 Flight 7 | . . . . . . . . . . . . . . . . . . . 1 2 1 . . 3 Utility 119 | 1 2 . 4 . 2 2 4 . 2 . . 3 12 4 4 1 1 4 15 15 15 2 1 25 Device 67 | . 1 . 2 . 1 1 1 . 2 . . 1 7 2 2 . 1 . 12 10 10 . . 14 Storage 6 | 1 1 . . . . 1 . . . . . . . . . . . . . 1 1 . . 1 Processor 6 | . . . . . . . . . . . . . . . . . . . . 2 . . . 4 Hackware 11 | . . . . . . . 2 . . . . . . . 2 . . 1 1 1 1 . 1 2 Protection 28 | . . . 2 . 1 . 1 . . . . 2 5 2 . 1 . 3 2 1 2 2 . 4 Artifact 1 | . . . . . . . . . . . . . . . . . . . . . 1 . . . Weapon 153 | . 4 3 6 . 8 9 23 . 2 1 3 3 10 2 5 7 2 5 11 8 17 1 2 21 Energy Gun 77 | . . 1 4 . 7 9 14 . 2 . 2 1 6 1 1 2 . 1 5 5 7 1 . 8 Energy Cannon 12 | . . . . . . . . . . . . 2 1 . . . . . 2 . . . 1 6 Ballistic Gun 31 | . 4 2 1 . . . . . . . . . 1 1 2 5 1 3 4 . 3 . . 4 Ballistic Cannon 2 | . . . . . . . . . . . . . . . . . . . . . 2 . . . Launcher 17 | . . . 1 . 1 . 9 . . 1 1 . 1 . . . . . . . 1 . . 2 Special Weapon 5 | . . . . . . . . . . . . . 1 . 1 . 1 1 . 1 . . . . Impact Weapon . | . . . . . . . . . . . . . . . . . . . . . . . . . Slashing Weapon 2 | . . . . . . . . . . . . . . . 1 . . . . . . . . 1 Piercing Weapon 6 | . . . . . . . . . . . . . . . . . . . . 2 3 . 1 . Special Melee Weapon 1 | . . . . . . . . . . . . . . . . . . . . . 1 . . . Unidentified Prototypes 14 | . . 1 1 . 1 . . . . . . . . . . 3 . 2 1 2 2 . . 1 Corrupted Parts 21 | . . . . . 4 . 6 . . . . 4 3 . 1 . . 2 1 . . . . . System Corruption 122 | . . . . . 20 . 40 . . . . 24 26 . 7 . . 4 1 . . . . . Parts Lost 172 | . . 2 6 . 4 1 16 . . 3 . 3 13 2 1 . . 20 22 1 27 . . 51 Power 27 | . . . . . . . 4 . . 1 . . 2 . . . . 3 5 . 4 . . 8 Propulsion 47 | . . 2 3 . 1 . 5 . . 1 . . 6 1 . . . 4 6 . 5 . . 13 Utility 57 | . . . 2 . 2 . 3 . . . . 1 1 . . . . 8 6 1 14 . . 19 Weapon 41 | . . . 1 . 1 1 4 . . 1 . 2 4 1 1 . . 5 5 . 4 . . 11 Highest Loss Streak 19 | . . 1 2 . 3 1 10 . . 3 . 2 3 1 1 . . 19 15 1 8 . . 7 To Critical Strikes 2 | . . . . . . . . . . . . . 1 . . . . . . . 1 . . . Average Slot Usage (%) 82 | . 92 98 98 84 79 83 80 93 100 96 82 99 80 88 93 93 94 79 61 67 80 63 72 63 Engine 7 | . 14 11 9 7 10 16 9 6 6 16 20 20 11 5 5 5 5 2 . . . . . . Core 3 | . . . . . . 2 6 13 13 2 . . 2 11 11 6 5 2 8 . . . . . Reactor 2 | . . . . . . . . . . . . . . . . 4 5 5 1 10 12 8 8 8 Treads 19 | . 14 14 26 23 26 26 25 26 26 24 26 26 25 19 23 23 23 21 13 6 10 13 13 6 Wheel 1 | . 14 17 . . . . . . . . . . . . . . . . . . 1 . . . Device 13 | . 13 11 17 15 7 13 6 . 12 13 13 11 15 11 14 17 17 13 14 21 18 8 8 12 Storage 5 | . 14 11 9 7 7 6 6 6 6 6 6 6 5 5 5 5 5 4 . 3 4 4 4 2 Hackware 3 | . . . . . . . . 13 6 6 6 6 . . 4 . . . 1 4 6 8 9 7 Protection 5 | . . . 9 7 2 . 2 6 6 6 6 7 1 15 8 10 11 11 6 2 4 6 8 4 Energy Gun 8 | . . . 15 23 21 19 15 20 20 14 1 2 11 6 1 . . . 4 7 6 8 8 4 Energy Cannon 2 | . . . . . . . . . . . . 10 3 5 5 . . . . . . . 3 3 Ballistic Gun 3 | . 21 32 10 . . . . . . . . . . 3 4 15 16 13 6 . 2 . . 1 Launcher 1 | . . . 1 . 1 . 4 . . 4 . 6 . . . . . . . . . . . . Naked Turns . | . . . . . . . . . . . . . . . . . . . . . . . . . Heaviest Build 168 | 8 32 37 48 48 59 85 92 76 78 90 90 103 109 118 117 124 123 122 56 125 155 124 134 168 Greatest Support 215 | 20 20 60 60 60 80 110 110 90 90 90 90 93 144 144 144 143 153 153 139 149 170 215 215 215 Greatest Overweight (x) 5 | . 3 3 1 . 1 . 1 . . 1 . 1 1 . . . . 1 3 . 5 . . 3 Average Overweight (x) . | . . . . . . . . . . . . . . . . . . . . . . . . . Largest Inventory Capacity 20 | 8 15 15 15 15 15 20 20 20 20 20 20 20 20 20 20 20 20 20 5 20 20 20 20 20 Average Capacity 17 | 6 10 15 15 15 15 17 20 20 20 20 20 20 20 20 20 20 20 19 5 16 20 20 20 15 Most Carried 20 | 6 15 15 15 14 15 20 20 15 20 20 20 20 20 20 20 20 20 20 5 20 20 20 20 20 Average Carried 16 | 4 8 14 13 14 14 16 16 14 17 19 20 19 17 19 19 19 20 17 4 10 18 16 19 13 Final Capacity 20 | 8 15 15 15 15 15 20 20 20 20 20 20 20 20 20 20 20 20 5 5 20 20 20 20 5 Final Carried 20 | 6 15 15 14 14 15 20 14 15 20 20 20 20 19 20 20 20 20 3 5 20 18 20 18 3 Class Distribution -------------------- 40% | Scavenger-Mutant 26% | Scavenger-Tank 11% | Scavenger-Skirmisher 5% | Scavenger-Gunner 4% | Mutant 3% | Skirmisher 3% | Commander-Tank Dominant Class ---------------- Mutant | -10/Materials Skirmisher | -9/Materials Scavenger-Tank | -8/Materials Scavenger-Mutant | -7/Factory Scavenger-Skirmisher | -7/DSF Scavenger-Skirmisher | -6/Factory Scavenger-Skirmisher | -6/Garrison Scavenger-Mutant | -6/Factory Scavenger-Tank | -6/Lower Caves Scavenger-Mutant | -6/Lower Caves Scavenger-Mutant | -6/Data Miner Scavenger-Tank | -5/Proximity Caves Scavenger-Gunner | -5/Factory Scavenger-Mutant | -5/Garrison Scavenger-Mutant | -5/Extension Commander-Tank | -5/Cetus Scavenger-Tank | -5/Archives Scavenger-Tank | -5/Hub_04(d) Scavenger-Mutant | -4/Factory Scavenger-Mutant | -3/Research Scavenger-Tank | -3/Quarantine Scavenger-Mutant | -2/Research Scavenger-Tank | -2/DSF Scavenger-Mutant | -1/Access Resources | -11 -10 -9 -8 -7 -7 -6 -6 -6 -6 -6 -6 -5 -5 -5 -5 -5 -5 -5 -4 -3 -3 -2 -2 -1 ----------- Run | Scr Mat Mat Mat Fac DSF Fac Gar Fac Low Low Dat Pro Fac Gar Ext Cet Arc Hub Fac Res Qua Res DSF Acc Matter Collected 10287 | 189 121 736 843 . 181 185 875 . 137 91 . 301 2221 317 777 171 133 431 417 388 773 . 8 992 Remotely . | . . . . . . . . . . . . . . . . . . . . . . . . . Salvage Created 15056 | . 208 728 1128 . 485 923 2586 . 48 173 . 152 2313 117 196 82 96 490 817 346 1017 . 78 3073 Parts 759 | . 20 62 62 . 24 47 84 . 4 5 . 5 101 3 7 4 6 32 54 15 52 . 6 166 Haulers Intercepted 10 | . 1 1 2 . . 1 . . . . . . 2 . . . . . . . . . . 3 Recyclers Shooed 8 | . . 1 . . . 1 . . . . . . 2 . 2 . . 2 . . . . . . Parts Field Recycled . | . . . . . . . . . . . . . . . . . . . . . . . . . Retrieved Matter . | . . . . . . . . . . . . . . . . . . . . . . . . . Parts Self-Destructed 17 | . . . . . . . . . 7 8 . 2 . . . . . . . . . . . . Prevented 13 | . . . . . . . . . 3 6 . 4 . . . . . . . . . . . . Kills | -11 -10 -9 -8 -7 -7 -6 -6 -6 -6 -6 -6 -5 -5 -5 -5 -5 -5 -5 -4 -3 -3 -2 -2 -1 ------- Run | Scr Mat Mat Mat Fac DSF Fac Gar Fac Low Low Dat Pro Fac Gar Ext Cet Arc Hub Fac Res Qua Res DSF Acc Combat Hostiles Destroyed 222 | . 3 17 20 . 8 8 43 . 1 4 . 4 23 2 2 1 1 4 18 4 14 . 1 44 Melee 19 | . . . . . . . . . . . . . . . . . . . . 4 . . 1 14 Guns 111 | . 3 17 17 . 2 5 10 . 1 1 . . 11 1 1 1 1 4 16 . 12 . . 8 Cannons 20 | . . . . . . . . . . . . 2 5 . . . . . . . 2 . . 11 AOE 45 | . . . 3 . 3 2 25 . . 3 . 1 . . . . . . 2 . . . . 6 Classes Destroyed 18 | . 4 5 2 . 2 1 1 . . . . . . . . . . . 1 . 1 . 1 . Worker 14 | . . 1 . . . 2 . . . . . . 5 . . . . 3 . 1 . . . 2 Builder 8 | . 1 1 . . . . . . . . . . 2 . 1 . . 1 . . . . . 2 Tunneler 5 | . . 1 . . . 1 . . . . . . 1 . . . . 2 . . . . . . Hauler 10 | . 1 1 2 . . 1 . . . . . . 2 . . . . . . . . . . 3 Recycler 10 | . . . 2 . . 2 . . . . . . 5 . . . . . . . . . . 1 Operator 6 | . . 2 2 . . . . . . . . . . . . . . . . . 1 . . 1 Watcher 15 | . 1 3 3 . . 3 . . . . . . 1 . . 1 . . . . . . . 3 Swarmer 59 | . . 8 4 . . . 10 . . 2 . 3 6 . 1 . . . 11 . . . . 14 Grunt 73 | . 3 6 13 . 6 . 21 . . 2 . . 6 1 1 1 . . . 3 1 . . 9 Brawler 4 | . . . 2 . . . 2 . . . . . . . . . . . . . . . . . Duelist 7 | . . . . . . . 4 . . . . . 2 . . . . . . . . . . 1 Researcher 2 | . . . . . . . . . . . . . . . . . . . . . 2 . . . Sentry 22 | . . 3 1 . . 2 5 . . . . 1 2 . 1 . 1 1 2 1 1 . . 1 Specialist 1 | . . . . . . . . . . . . . . . . . . . . . . . 1 . Hunter 23 | . . . . . 1 3 1 . 1 . . . 3 . . . . 2 2 . 4 . . 6 Programmer 28 | . . . . . . 3 . . . . . . 4 1 . . . . 2 . 5 . . 13 Heavy 2 | . . . . . 1 . . . . . . . . . . . . 1 . . . . . . Lightning 3 | . . . . . . . . . . . . . . . . . . . . . 3 . . . Striker 1 | . . . . . . . . . . . . . . . . . . . 1 . . . . . Guerrilla 2 | . . . . . . . . . . . . . . . . . . 2 . . . . . . Best Kill Streak 8 | . 2 4 5 . 4 4 8 . 1 2 . 2 7 1 1 1 1 8 7 3 3 . 1 8 Combat Bots Only 8 | . 1 3 4 . 4 2 8 . 1 2 . 2 5 1 1 1 1 2 7 3 3 . 1 6 Max Kills in Single Turn 8 | . 1 2 3 . 2 3 4 . 1 2 . 1 2 1 1 1 1 2 2 1 1 . 1 8 Gunslinging 1 | . . 1 . . . . 1 . . . . . . . . . . . 1 . . . . . Exploded 4 | . . . 3 . 2 2 4 . . 2 . 1 . . . . . . 2 . . . . 4 Melee 1 | . . . . . . . . . . . . . . . . . . . . 1 . . 1 1 Uniques/NPCs Destroyed . | . . . . . . . . . . . . . . . . . . . . . . . . . Combat | -11 -10 -9 -8 -7 -7 -6 -6 -6 -6 -6 -6 -5 -5 -5 -5 -5 -5 -5 -4 -3 -3 -2 -2 -1 -------- Run | Scr Mat Mat Mat Fac DSF Fac Gar Fac Low Low Dat Pro Fac Gar Ext Cet Arc Hub Fac Res Qua Res DSF Acc Damage Taken 37402 | . 107 544 1044 . 497 711 2120 . 108 550 45 429 2286 273 619 80 . 5233 3820 843 7563 . 194 10336 Core 4247 | . 22 40 57 . 48 49 214 . . 47 45 . 166 81 72 . . 237 624 112 754 . . 1679 Absorbed by Shields 1000 | . . . . . . . . . . . . . . . 135 57 . . . 176 632 . . . Reduced by Siege Mode 652 | . . . . . . . . . . . . . . . . . . . 23 . 482 . . 147 Redirected to Core 270 | . . . . . . . . . . . . . . . . . . . . . 270 . . . Redirected to Shielding 123 | . . . . . . . . . . . . . . . . . . . . . 123 . . . Regen/Repaired (Parts) 255 | . . . . . . 203 . . . . . . 52 . . . . . . . . . . . Core Remaining (%) 74 | 100 91 90 89 . 93 . . . . . . 58 . . . . . 44 45 . 33 . 100 . Volleys Fired 772 | . 27 58 68 . 19 43 90 . 4 9 . 12 75 11 78 5 4 23 42 11 99 . . 94 Largest 4 | . 2 3 3 . 3 3 3 . 3 3 . 3 3 2 3 3 3 3 3 3 3 . . 4 Hottest 276 | . 46 91 165 . 180 180 180 . 170 170 . 171 244 131 186 240 101 103 264 253 247 . . 276 Shots Fired 1717 | . 54 174 189 . 53 103 204 . 12 27 1 26 184 20 93 13 11 69 87 27 182 . . 188 Gun 1397 | . 54 174 188 . 51 103 133 . 12 25 1 3 148 18 15 13 11 69 85 27 142 . . 125 Cannon 179 | . . . . . . . . . . . . 17 33 2 23 . . . 2 . 40 . . 62 Launcher 85 | . . . 1 . 2 . 71 . . 2 . 6 2 . . . . . . . . . . 1 Special 56 | . . . . . . . . . . . . . 1 . 55 . . . . . . . . . Kinetic 624 | . 54 170 129 . . . . . . . . . 3 5 11 12 11 69 58 . 62 . . 40 Thermal 348 | . . . 51 . . 35 . . . . . . 35 2 27 1 . . 18 22 97 . . 60 Explosive 11 | . . . 1 . 2 . 8 . . . . . . . . . . . . . . . . . Electromagnetic 678 | . . 4 8 . 51 68 196 . 12 27 1 26 145 13 . . . . 11 5 23 . . 88 Robot Hit Streak 42 | . 12 14 15 . 9 6 16 . 5 6 . 7 23 3 42 5 3 21 8 9 19 . . 20 Robot Miss Streak 6 | . 4 3 3 . 4 4 6 . 2 4 . 5 4 3 4 2 3 2 3 3 5 . . 5 Penetration Max 2 | . . . . . . . . . . . . . . . . . 1 1 2 . . . . 1 Secondary Targets 23 | . . 1 4 . 1 . 4 . . . . . 1 1 . 1 1 1 6 . 1 . . 1 Max Gunslinging Chain 2 | . . 1 1 . 1 . 1 . . . . . 1 1 . 1 1 1 2 . 1 . . 1 Shots Hit Robots 1113 | . 36 106 119 . 36 51 103 . 8 11 . 11 118 10 70 8 5 56 60 27 124 . 1 153 Core Hits 528 | . 13 33 53 . 16 28 90 . 3 7 . 5 57 5 6 5 3 24 39 13 47 . 1 80 Critical Kills 20 | . . . 1 . . . . . . . . . 1 1 2 . . 1 8 . 3 . . 3 Critical Parts Destroyed 21 | . . . 1 . . . . . . . . . . . . 1 1 4 5 . 4 . . 5 Critical Strikes 64 | . . . 8 . . 2 2 . . . . 1 1 1 3 1 1 5 13 1 9 . 1 15 Burn 8 | . . . 5 . . . . . . . . . . . 1 . . . . . . . . 2 Meltdown 2 | . . . . . . . . . . . . . . 1 1 . . . . . . . . . Destroy 39 | . . . 2 . . . . . . . . . 1 . 1 1 1 5 13 . 7 . . 8 Blast 2 | . . . . . . . . . . . . . . . . . . . . . 2 . . . Corrupt 8 | . . . 1 . . 2 2 . . . . 1 . . . . . . . . . . . 2 Sever 1 | . . . . . . . . . . . . . . . . . . . . . . . . 1 Impale 4 | . . . . . . . . . . . . . . . . . . . . 1 . . 1 2 Melee Attacks 104 | . . . . . . . . . . . . . . . . . . . . 18 17 . 1 68 Impact . | . . . . . . . . . . . . . . . . . . . . . . . . . Slashing 23 | . . . . . . . . . . . . . . . . . . . . . . . . 23 Piercing 79 | . . . . . . . . . . . . . . . . . . . . 18 15 . 1 45 Sneak Attacks 8 | . . . . . . . . . . . . . . . . . . . . 1 4 . 1 2 Combat Hostiles 1 | . . . . . . . . . . . . . . . . . . . . . . . 1 . Follow-up Attacks . | . . . . . . . . . . . . . . . . . . . . . . . . . Damage Inflicted 39106 | . 380 1701 2588 . 1179 1772 4696 . 137 487 . 366 3366 339 423 174 164 1695 1553 1054 3795 . 100 13137 Guns 18539 | . 380 1701 1996 . 750 1239 1468 . 137 229 . 40 2240 144 171 174 164 1678 1303 449 2487 . . 1789 Cannons 3503 | . . . . . . . . . . . . 162 677 80 234 . . . . . 827 . . 1523 Explosions 13518 | . . . 590 . 429 530 3228 . . 258 . 164 441 115 . . . . 250 . . . . 7513 Melee 3345 | . . . . . . . . . . . . . . . . . . . . 605 328 . 100 2312 Ramming 201 | . . . 2 . . 3 . . . . . . 8 . 18 . . 17 . . 153 . . . Kinetic 7312 | . 380 1642 1162 . . . . . . . . . 7 18 114 174 164 1678 712 . 1104 . . 157 Thermal 15132 | . . . 704 . 192 1003 181 . . 113 . 97 1186 195 291 . . . 394 403 1870 . . 8503 Explosive 1802 | . . . 590 . 237 . 725 . . . . . . . . . . . 250 . . . . . Electromagnetic 11314 | . . 59 130 . 750 766 3790 . 137 374 . 269 2165 126 . . . . 197 46 340 . . 2165 Impact . | . . . . . . . . . . . . . . . . . . . . . . . . . Slashing 1050 | . . . . . . . . . . . . . . . . . . . . . . . . 1050 Piercing 2295 | . . . . . . . . . . . . . . . . . . . . 605 328 . 100 1262 Highest Corruption 70 | . . . . . 20 4 45 45 45 45 45 70 27 27 35 35 35 62 9 . 61 . . 34 Average Corruption 30 | . . . . . 19 2 26 45 45 45 45 57 22 27 30 35 35 40 3 . 33 . . 22 Corruption Purged 3 | . . . . . . . . . . . . . 3 . . . . . . . . . . . Corruption Blocked . | . . . . . . . . . . . . . . . . . . . . . . . . . Effects 668 | . . . . . 14 14 86 4 37 26 10 87 57 34 70 16 15 32 8 . 62 . . 96 Message Errors 141 | . . . . . 3 3 15 1 5 3 3 30 12 7 16 . 5 4 4 . 13 . . 17 Matter Fused 156 | . . . . . 2 5 15 . 12 10 2 15 15 9 18 5 3 6 2 . 13 . . 24 Heat Flow Errors 66 | . . . . . 4 1 7 . 3 3 2 12 8 3 8 3 1 3 . . 4 . . 4 Energy Discharges 70 | . . . . . 1 1 11 . 7 3 1 9 3 6 8 2 2 4 . . 5 . . 7 Parts Rejected 6 | . . . . . . . . . . . . 1 . . . . . 1 . . 1 . . 3 Data Loss (minor) 76 | . . . . . 1 1 8 2 4 4 . 12 9 4 10 1 1 1 2 . 8 . . 8 Data Loss (major) 26 | . . . . . . 1 7 1 4 2 . 2 1 . 2 . . 2 . . 1 . . 3 Misfires 32 | . . . . . 1 2 7 . . 1 1 2 1 1 5 . 1 3 . . 3 . . 4 Alerts 18 | . . . . . . . 3 . 1 . . 1 2 2 . 4 . 1 . . . . . 4 Misdirections 28 | . . . . . . . 1 . 1 . 1 . 1 1 1 1 . 4 . . 3 . . 14 Weapon Failures 49 | . . . . . 2 . 12 . . . . 3 5 1 2 . 2 3 . . 11 . . 8 Overload Shots 1 | . . . . . . . . . . . . . . . . 1 . . . . . . . . Overflow Damage 1279 | . . . 81 . . 119 86 . . 5 . . 2 . 8 . . . . 14 124 . . 840 Projectiles 12 | . . . . . . . . . . . . . 2 . 8 . . . . . 2 . . . Explosions 1006 | . . . 81 . . 119 86 . . 5 . . . . . . . . . . . . . 715 Melee 261 | . . . . . . . . . . . . . . . . . . . . 14 122 . . 125 Knockbacks 14 | . . . . . . . . . . . . . . . . . . . . . 14 . . . Impact 1 | . . . . . . . . . . . . . . . . . . . . . 1 . . . Kinetic 12 | . . . . . . . . . . . . . . . . . . . . . 12 . . . Secondary 1 | . . . . . . . . . . . . . . . . . . . . . 1 . . . Self-Inflicted Damage 1440 | . . . 69 . . 161 193 . . . . 31 36 . . . . . 129 . . . . 821 Shots 23 | . . . 1 . . 2 12 . . . . 3 1 . . . . . 2 . . . . 2 Rammed 21 | . . . 1 . . 1 . . . . . . 2 . 1 . . 1 . . 15 . . . Targets Rammed 23 | . . . 1 . . 1 . . . . . . 2 . 1 . . 3 . . 15 . . . Kicked . | . . . . . . . . . . . . . . . . . . . . . . . . . Crushed 2 | . . . . . . . . . . . . . . . . . . 2 . . . . . . Highest Temperature 396 | . 18 118 45 . 312 245 356 . 144 152 174 308 348 203 212 238 231 180 369 112 351 2 . 396 Average Temperature 82 | . 7 35 11 . 119 59 83 . 54 57 89 111 88 75 36 103 137 74 158 45 107 1 . 116 Received Heat Transfer 3591 | . 60 156 531 . 108 18 402 . 12 186 . 36 270 36 130 16 . 378 432 197 29 . 18 576 Effects 22 | . . . . . 3 . 4 . . . . . 2 . . . . . 5 . 2 . . 6 Shutdowns 7 | . . . . . . . . . . . . . 1 . . . . . 1 . . . . 5 Energy Bleed 4 | . . . . . . . 1 . . . . . . . . . . . . . 2 . . 1 Interference 10 | . . . . . 3 . 3 . . . . . 1 . . . . . 3 . . . . . Short Circuit 1 | . . . . . . . . . . . . . . . . . . . 1 . . . . . Siege Activations 14 | . . . . . . . . . . . . . . . . . . . 2 . 5 . . 7 Total Turns 315 | . . . . . . . . . . . . . . . . . . . 13 . 147 . . 155 Longest Duration 50 | . . . . . . . . . . . . . . . . . . . 11 . 50 . . 41 Robots Corrupted 26 | . . . . . 3 . 9 . . . . 1 8 . . . . . . . . . . 5 Combat Hostiles 24 | . . . . . 3 . 8 . . . . 1 7 . . . . . . . . . . 5 Parts Fried 92 | . . . . . 6 7 35 . . . . 1 23 . . . . 1 . . 3 . . 16 Impact Corruptions 1 | . . . . . . . . . . . . . . . . . . . . . 1 . . . Robots Melted 3 | . . . . . . 1 . . . . . . . 1 1 . . . . . . . . . Combat Hostiles 3 | . . . . . . 1 . . . . . . . 1 1 . . . . . . . . . Parts Melted 29 | . . . 9 . . 6 . . 2 . . . 3 . 1 . . . 1 . 1 . . 6 Heat Transferred 10264 | . . . 1739 . 150 990 150 . . . . 150 1527 150 535 . . . 481 518 2294 . . 1580 Parts Sabotaged . | . . . . . . . . . . . . . . . . . . . . . . . . . Parts Stolen . | . . . . . . . . . . . . . . . . . . . . . . . . . Parts Stripped . | . . . . . . . . . . . . . . . . . . . . . . . . . Power Chain Reactions 16 | . . . . . 1 . 4 . . 1 . 1 7 1 . . . . . . . . . 1 Missiles Intercepted . | . . . . . . . . . . . . . . . . . . . . . . . . . Alert | -11 -10 -9 -8 -7 -7 -6 -6 -6 -6 -6 -6 -5 -5 -5 -5 -5 -5 -5 -4 -3 -3 -2 -2 -1 ------- Run | Scr Mat Mat Mat Fac DSF Fac Gar Fac Low Low Dat Pro Fac Gar Ext Cet Arc Hub Fac Res Qua Res DSF Acc Peak Influence 1567 | . 124 351 582 119 291 359 1567 828 . . . . 303 498 1190 1258 655 614 591 466 334 8 27 608 Initial 822 | . . 52 120 119 83 152 193 822 . . . . . 224 261 641 503 228 172 186 175 8 7 16 Average 363 | . 52 184 298 119 208 175 903 823 . . . . 150 421 657 896 638 433 225 333 146 8 26 299 Maximum Alert Level 4 | . . 1 2 . 1 1 4 3 . . . . 1 2 4 4 2 2 2 2 1 . . 2 Low Security (%) 38 | 100 100 54 27 100 45 66 13 . . . . . 69 . . . . . 66 4 72 100 100 25 Level 1 30 | . . 45 46 . 54 33 8 . . . . . 30 20 16 . . 39 24 72 27 . . 54 Level 2 19 | . . . 25 . . . 16 . . . . . . 79 52 11 100 60 9 23 . . . 19 Level 3 5 | . . . . . . . 18 100 . . . . . . 13 58 . . . . . . . . Level 4 6 | . . . . . . . 43 . . . . . . . 17 29 . . . . . . . . Level 5 . | . . . . . . . . . . . . . . . . . . . . . . . . . High Security . | . . . . . . . . . . . . . . . . . . . . . . . . . Max Security . | . . . . . . . . . . . . . . . . . . . . . . . . . Sterilizations 1 | . . . . . 1 . . . . . . . . . . . . . . . . . . . Squads Dispatched 54 | . 2 1 5 . 1 6 . . . . . . 7 . 3 . . 7 3 2 6 1 . 10 Investigation 16 | . 2 . . . . 2 . . . . . . 3 . 2 . . 1 . 1 3 . . 2 Extermination 14 | . . . . . . 3 . . . . . . 2 . . . . . 2 . 2 1 . 4 Reinforcement 18 | . . 1 3 . 1 1 . . . . . . 1 . 1 . . 5 1 1 . . . 3 Assault 1 | . . . 1 . . . . . . . . . . . . . . . . . . . . . Garrison 5 | . . . 1 . . . . . . . . . 1 . . . . 1 . . 1 . . 1 Intercept . | . . . . . . . . . . . . . . . . . . . . . . . . . Searches Triggered . | . . . . . . . . . . . . . . . . . . . . . . . . . Construction Impeded 2 | . . . . . . . . . . . . . 1 . . . . 1 . . . . . . Haulers Reinforced 1 | . . . . . . . . . . . . . . . . . . . . . . . . 1 Active Scanning Responses 2 | . . . . . . 1 1 . . . . . . . . . . . . . . . . . Cargo Convoy Interrupts 1 | . . . . . . . . . . . . . . . . . . . 1 . . . . . Stealth | -11 -10 -9 -8 -7 -7 -6 -6 -6 -6 -6 -6 -5 -5 -5 -5 -5 -5 -5 -4 -3 -3 -2 -2 -1 --------- Run | Scr Mat Mat Mat Fac DSF Fac Gar Fac Low Low Dat Pro Fac Gar Ext Cet Arc Hub Fac Res Qua Res DSF Acc Distress Signals 32 | . . 2 4 . . 1 . . . . . . 1 . 2 3 . 3 2 6 2 . . 6 Communications Jammed 38 | . . . . . . . . . . . . . . . . . . . 27 . 11 . . . Distress Signals 38 | . . . . . . . . . . . . . . . . . . . 27 . 11 . . . Times Spotted 473 | . 5 27 29 . 8 13 46 . 6 8 7 6 33 10 33 17 10 31 44 19 32 . 2 87 Peak Tracking Total 17 | . 2 5 6 . 4 2 4 . 5 4 4 4 5 4 4 5 2 17 15 6 7 1 2 10 Tactical Retreats 37 | . 1 1 2 . 2 . 4 . . . . 1 2 . 3 . . 5 2 1 . . . 13 Traps | -11 -10 -9 -8 -7 -7 -6 -6 -6 -6 -6 -6 -5 -5 -5 -5 -5 -5 -5 -4 -3 -3 -2 -2 -1 ------- Run | Scr Mat Mat Mat Fac DSF Fac Gar Fac Low Low Dat Pro Fac Gar Ext Cet Arc Hub Fac Res Qua Res DSF Acc Traps Triggered 13 | . 1 . . . 1 1 7 . . . . . 1 . . . . . . 1 1 . . . Indirectly 5 | . . . . . . . 5 . . . . . . . . . . . . . . . . . Trap Hack Attempts . | . . . . . . . . . . . . . . . . . . . . . . . . . Triggered . | . . . . . . . . . . . . . . . . . . . . . . . . . Disarmed 4 | . . . . . . . . . . . . . . . 4 . . . . . . . . . Reprogrammed . | . . . . . . . . . . . . . . . . . . . . . . . . . Reused . | . . . . . . . . . . . . . . . . . . . . . . . . . Traps Extracted . | . . . . . . . . . . . . . . . . . . . . . . . . . Installed . | . . . . . . . . . . . . . . . . . . . . . . . . . Triggered 1 | . . . . . . . . . . . . . . . 1 . . . . . . . . . Machines | -11 -10 -9 -8 -7 -7 -6 -6 -6 -6 -6 -6 -5 -5 -5 -5 -5 -5 -5 -4 -3 -3 -2 -2 -1 ---------- Run | Scr Mat Mat Mat Fac DSF Fac Gar Fac Low Low Dat Pro Fac Gar Ext Cet Arc Hub Fac Res Qua Res DSF Acc Machines Disabled 51 | . . 1 4 . . 7 1 . . . 1 . 6 1 3 1 1 . 12 . 4 . . 9 Max in Single Turn 7 | . . 1 3 . . 6 1 . . . 1 . 2 1 . 1 1 . 6 . 1 . . 7 Garrison Access 4 | . . . 1 . . . . . . . . . 1 . . . . . . . . . . 2 Garrison Relay 3 | . . . . . . . 2 . . . . . . 1 . . . . . . . . . . Network Hub 2 | . . . . . . . . . . . . . . . . . . 2 . . . . . . Machines Sabotaged . | . . . . . . . . . . . . . . . . . . . . . . . . . Garrisons Compromised . | . . . . . . . . . . . . . . . . . . . . . . . . . Overloaded Fab Kills . | . . . . . . . . . . . . . . . . . . . . . . . . . Hacking | -11 -10 -9 -8 -7 -7 -6 -6 -6 -6 -6 -6 -5 -5 -5 -5 -5 -5 -5 -4 -3 -3 -2 -2 -1 --------- Run | Scr Mat Mat Mat Fac DSF Fac Gar Fac Low Low Dat Pro Fac Gar Ext Cet Arc Hub Fac Res Qua Res DSF Acc Machines Accessed 82 | . 3 6 6 3 . 5 . 1 1 1 4 1 8 . 13 . . 1 3 6 8 1 . 11 Terminals 55 | . 3 5 5 3 . 3 . 1 . . . 1 2 . 13 . . 1 . 4 6 1 . 7 Fabricators 4 | . . . . . . . . . . . . . 1 . . . . . . 2 . . . 1 Repair Stations 1 | . . . . . . 1 . . . . . . . . . . . . . . . . . . Recycling Units 4 | . . 1 . . . . . . . . . . 2 . . . . . . . . . . 1 Scanalyzers 5 | . . . . . . . . . . . . . 1 . . . . . 2 . 2 . . . Garrison Access 7 | . . . 1 . . 1 . . . . . . 2 . . . . . 1 . . . . 2 Total Hacks 261 | . 6 24 21 8 . 12 . 2 1 1 27 1 19 . 36 . . 3 6 26 29 1 . 38 Successful 118 | . 2 11 12 2 . 5 . 1 1 1 27 1 9 . 11 . . . 3 7 13 1 . 11 Failed 142 | . 3 13 9 6 . 7 . 1 . . . . 10 . 25 . . 3 3 19 16 . . 27 Catastrophic 35 | . . 1 1 3 . 1 . . . . . . 3 . 7 . . 1 . 8 2 . . 8 Database Lockouts 1 | . 1 . . . . . . . . . . . . . . . . . . . . . . . Manual 103 | . 4 20 15 6 . 5 . . . . . . 4 . 9 1 . 3 . 16 10 . . 10 Terminals 176 | . 6 19 18 8 . 7 . 2 . . . 1 6 . 36 . . 3 . 22 21 1 . 26 Fabricators 10 | . . . . . . . . . . . . . 4 . . . . . . 4 . . . 2 Repair Stations 2 | . . . . . . 2 . . . . . . . . . . . . . . . . . . Recycling Units 13 | . . 5 . . . . . . . . . . 2 . . . . . . . . . . 6 Scanalyzers 16 | . . . . . . . . . . . . . 3 . . . . . 5 . 8 . . . Garrison Access 15 | . . . 3 . . 3 . . . . . . 4 . . . . . 1 . . . . 4 Terminal Hacks 71 | . 1 6 6 1 . 1 . 1 1 1 27 1 2 . 9 . . . . 3 6 1 . 4 Record 14 | . . . . . . . . . . . 11 1 . . . . . . . . 2 . . . Part Schematic 14 | . . 1 1 . . . . . . . 10 . . . 1 . . . . 1 . . . . Robot Schematic 8 | . 1 3 . . . . . . . . 3 . . . 1 . . . . . . . . . Prototype ID Bank 3 | . . . . . . . . . . . 3 . . . . . . . . . . . . . Open Door 11 | . . . . . . . . . 1 1 . . . . 4 . . . . . 2 . . 3 Open DSF 5 | . . . . 1 . 1 . 1 . . . . 1 . . . . . . . . 1 . . Level Access Points 1 | . . . . . . . . . . . . . . . . . . . . . . . . 1 Branch Access Points 2 | . . . . . . . . . . . . . . . . . . . . 1 1 . . . Terminal Index 3 | . . 1 1 . . . . . . . . . . . 1 . . . . . . . . . Garrison Index 1 | . . . . . . . . . . . . . . . . . . . . 1 . . . . Alert Level 2 | . . . 1 . . . . . . . . . . . 1 . . . . . . . . . Unreport Threat 4 | . . 1 2 . . . . . . . . . 1 . . . . . . . . . . . Locate Traps 1 | . . . 1 . . . . . . . . . . . . . . . . . . . . . Disarm Traps 1 | . . . . . . . . . . . . . . . 1 . . . . . . . . . Zone Layout 1 | . . . . . . . . . . . . . . . . . . . . . 1 . . . Fabricator Hacks 4 | . . . . . . . . . . . . . 2 . . . . . . 2 . . . . Load Schematic 2 | . . . . . . . . . . . . . 1 . . . . . . 1 . . . . Build 2 | . . . . . . . . . . . . . 1 . . . . . . 1 . . . . Repair Station Hacks 2 | . . . . . . 2 . . . . . . . . . . . . . . . . . . Scan Component 1 | . . . . . . 1 . . . . . . . . . . . . . . . . . . Repair 1 | . . . . . . 1 . . . . . . . . . . . . . . . . . . Recycling Unit Hacks 4 | . . 3 . . . . . . . . . . . . . . . . . . . . . 1 Retrieve Matter 1 | . . 1 . . . . . . . . . . . . . . . . . . . . . . Retrieve Components 3 | . . 2 . . . . . . . . . . . . . . . . . . . . . 1 Scanalyzer 11 | . . . . . . . . . . . . . 2 . . . . . 2 . 7 . . . Insert Component 9 | . . . . . . . . . . . . . 2 . . . . . 1 . 6 . . . Analyze 2 | . . . . . . . . . . . . . . . . . . . 1 . 1 . . . Garrison Access Hacks 9 | . . . 1 . . 1 . . . . . . 2 . . . . . 1 . . . . 4 Unlock Access 3 | . . . 1 . . 1 . . . . . . 1 . . . . . . . . . . . Seal Access 3 | . . . . . . . . . . . . . 1 . . . . . . . . . . 2 Coupler Status 3 | . . . . . . . . . . . . . . . . . . . 1 . . . . 2 Unauthorized Hacks 17 | . 1 2 5 1 . 1 . . . . . . 1 . 2 . . . . 2 . . . 2 Terminals 15 | . 1 2 4 1 . 1 . . . . . . . . 2 . . . . 2 . . . 2 Assimilate 1 | . . . . . . . . . . . . . . . . . . . . 1 . . . . Botnet 13 | . 1 2 3 1 . 1 . . . . . . . . 2 . . . . 1 . . . 2 Operators 1 | . . . 1 . . . . . . . . . . . . . . . . . . . . . Fabricators . | . . . . . . . . . . . . . . . . . . . . . . . . . Repair Stations . | . . . . . . . . . . . . . . . . . . . . . . . . . Recycling Units . | . . . . . . . . . . . . . . . . . . . . . . . . . Scanalyzers . | . . . . . . . . . . . . . . . . . . . . . . . . . Garrison Access 2 | . . . 1 . . . . . . . . . 1 . . . . . . . . . . . Reprogram 1 | . . . 1 . . . . . . . . . . . . . . . . . . . . . Eject 1 | . . . . . . . . . . . . . 1 . . . . . . . . . . . Data Cores Recovered 3 | . . 1 . . . . . . . . . . . . . . . . . . 1 . . 1 Used 2 | . . 1 . . . . . . . . . . . . . . . . . . 1 . . . Hacking Detections 58 | . 3 5 5 3 . 5 . . . . . . 7 . 13 . . 1 1 5 5 . . 5 Full Trace Events 11 | . 1 . . . . 1 . . . . . . 2 . 2 . . . . 1 2 . . 2 Feedback Events . | . . . . . . . . . . . . . . . . . . . . . . . . . Feedback Blocked . | . . . . . . . . . . . . . . . . . . . . . . . . . Robot Schematics Acquired 10 | . 1 3 . . . . . . . . 3 . . . 1 . . . . . 2 . . . Robots Built 1 | . . . . . . . . . . . . . 1 . . . . . . . . . . . Authchips . | . . . . . . . . . . . . . . . . . . . . . . . . . Time 40 | . . . . . . . . . . . . . 40 . . . . . . . . . . . Total Robot Build Rating 1 | . . . . . . . . . . . . . 1 . . . . . . . . . . . Part Schematics Acquired 21 | . . 1 1 . . . . . . . 10 . . . 1 . . . 1 1 6 . . . Parts Built 2 | . . . . . . . . . . . . . . . . . . . . 2 . . . . Authchips . | . . . . . . . . . . . . . . . . . . . . . . . . . Time 42 | . . . . . . . . . . . . . . . . . . . . 42 . . . . Total Part Build Rating 16 | . . . . . . . . . . . . . . . . . . . . 16 . . . . Parts Repaired 1 | . . . . . . 1 . . . . . . . . . . . . . . . . . . Time 38 | . . . . . . 38 . . . . . . . . . . . . . . . . . . Parts Recycled . | . . . . . . . . . . . . . . . . . . . . . . . . . Recycled Matter . | . . . . . . . . . . . . . . . . . . . . . . . . . Retrieved Matter . | . . . . . . . . . . . . . . . . . . . . . . . . . Retrieved Components 7 | . . . . . . . . . . . . . . . . . . . . . . . . 7 Parts Scanalyzed 2 | . . . . . . . . . . . . . . . . . . . 1 . 1 . . . Part Schematics Acquired 2 | . . . . . . . . . . . . . . . . . . . 1 . 1 . . . Parts Damaged . | . . . . . . . . . . . . . . . . . . . . . . . . . Bothacking | -11 -10 -9 -8 -7 -7 -6 -6 -6 -6 -6 -6 -5 -5 -5 -5 -5 -5 -5 -4 -3 -3 -2 -2 -1 ------------ Run | Scr Mat Mat Mat Fac DSF Fac Gar Fac Low Low Dat Pro Fac Gar Ext Cet Arc Hub Fac Res Qua Res DSF Acc Used RIF Installer 2 | . . . . . . . 1 . . . . . . 1 . . . . . . . . . . Coupler Efficiency 1 | . . . . . . . . . . . . . . 1 . . . . . . . . . . Robots Hacked 9 | . . . . . . . . . . . . . 1 . 7 . . . . . 1 . . . Non-combat 1 | . . . . . . . . . . . . . . . 1 . . . . . . . . . Combat 8 | . . . . . . . . . . . . . 1 . 6 . . . . . 1 . . . Robot Hacks Applied 10 | . . . . . . . . . . . . . 1 . 7 . . . . . 2 . . . parse_system 2 | . . . . . . . . . . . . . 1 . . . . . . . 1 . . . ignore_repairs 1 | . . . . . . . . . . . . . . . 1 . . . . . . . . . find_scanalyzer 1 | . . . . . . . . . . . . . . . . . . . . . 1 . . . reboot_system 1 | . . . . . . . . . . . . . . . 1 . . . . . . . . . streamctrl_high 2 | . . . . . . . . . . . . . . . 2 . . . . . . . . . formatsys_high 3 | . . . . . . . . . . . . . . . 3 . . . . . . . . . Relay Couplers Released 22 | . . . 3 . . 4 9 . . . . . 3 3 . . . . . . . . . . Ejected 3 | . . . . . . . . . . . . . 3 . . . . . . . . . . . Machine Destruction 15 | . . . 3 . . . 9 . . . . . . 3 . . . . . . . . . . Programmers 4 | . . . . . . 4 . . . . . . . . . . . . . . . . . . Attached 6 | . . . . . . . 2 . . . . . . . 2 . . 1 . . . . 1 . Fabnet Peak Effective % . | . . . . . . . . . . . . . . . . . . . . . . . . . Robots Rewired 34 | . . . . . . . 6 . . 1 . . . . 27 . . . . . . . . . Allies Hacked . | . . . . . . . . . . . . . . . . . . . . . . . . . Hacks Repelled . | . . . . . . . . . . . . . . . . . . . . . . . . . Allies | -11 -10 -9 -8 -7 -7 -6 -6 -6 -6 -6 -6 -5 -5 -5 -5 -5 -5 -5 -4 -3 -3 -2 -2 -1 -------- Run | Scr Mat Mat Mat Fac DSF Fac Gar Fac Low Low Dat Pro Fac Gar Ext Cet Arc Hub Fac Res Qua Res DSF Acc Total Allies 56 | . . . . . . . 6 . . 1 . . 2 . 38 5 . . . 4 . . . . Largest Group 20 | . . . . . . . 6 6 6 2 2 1 1 1 20 14 11 7 . 3 . . . . Highest-Rated Group 805 | . . . . . . . 192 192 192 64 64 32 99 99 720 805 781 468 . 138 . . . . Highest-Rated Ally 159 | . . . . . . . 32 32 32 32 32 32 99 99 159 153 146 96 . 46 . . . . Total Orders 2 | . . . . . . . . . . . . . 2 . . . . . . . . . . . STAY 1 | . . . . . . . . . . . . . 1 . . . . . . . . . . . AID 1 | . . . . . . . . . . . . . 1 . . . . . . . . . . . Ally Attacks 379 | . . . . . . . 3 . 17 14 2 3 7 20 174 91 23 22 . 3 . . . . Total Damage 13383 | . . . . . . . 76 . 743 524 38 141 283 1530 5459 2577 860 1090 . 62 . . . . Kills 92 | . . . . . . . 1 . 5 3 1 1 4 8 41 17 4 6 . 1 . . . . Allies Corrupted . | . . . . . . . . . . . . . . . . . . . . . . . . . Allies Melted 1 | . . . . . . . . . . . . . . . . . . 1 . . . . . . Intel | -11 -10 -9 -8 -7 -7 -6 -6 -6 -6 -6 -6 -5 -5 -5 -5 -5 -5 -5 -4 -3 -3 -2 -2 -1 ------- Run | Scr Mat Mat Mat Fac DSF Fac Gar Fac Low Low Dat Pro Fac Gar Ext Cet Arc Hub Fac Res Qua Res DSF Acc Robot Analysis Total . | . . . . . . . . . . . . . . . . . . . . . . . . . Derelict Logs Recovered 3 | . . . . . . . . . 1 1 . 1 . . . . . . . . . . . . Drone Launches . | . . . . . . . . . . . . . . . . . . . . . . . . . Drone Recoveries . | . . . . . . . . . . . . . . . . . . . . . . . . . Exploration | -11 -10 -9 -8 -7 -7 -6 -6 -6 -6 -6 -6 -5 -5 -5 -5 -5 -5 -5 -4 -3 -3 -2 -2 -1 ------------- Run | Scr Mat Mat Mat Fac DSF Fac Gar Fac Low Low Dat Pro Fac Gar Ext Cet Arc Hub Fac Res Qua Res DSF Acc Turns Passed 18467 | 93 375 630 840 157 358 1322 1672 86 646 420 164 1504 1489 606 1452 348 252 444 836 719 1318 320 61 2355 Spaces Moved 9866 | 54 162 375 359 99 148 655 693 49 368 215 98 626 571 343 626 182 136 196 433 578 568 208 35 2089 Core 59 | 3 . . . . . . . . . . . . . . . . . . 41 . . . . 15 Treads 7708 | 50 135 90 359 99 148 655 693 49 368 215 98 626 571 343 626 182 136 192 339 290 565 208 35 636 Legs 11 | . . . . . . . . . . . . . . . . . . 4 7 . . . . . Wheels 316 | 1 27 285 . . . . . . . . . . . . . . . . . . 3 . . . Hover 52 | . . . . . . . . . . . . . . . . . . . . . . . . 52 Flight 1720 | . . . . . . . . . . . . . . . . . . . 46 288 . . . 1386 Fastest Speed 35 | 50 125 95 160 160 160 162 160 165 165 162 162 162 160 160 160 162 162 120 45 35 145 150 150 39 Average Speed 143 | 152 165 110 163 160 172 165 166 165 165 176 162 231 173 160 160 162 162 165 143 93 155 150 150 78 Slowest Speed 320 | 160 240 160 240 160 240 167 246 165 165 243 162 242 240 160 162 162 162 243 320 145 250 152 150 240 Overloaded Moves . | . . . . . . . . . . . . . . . . . . . . . . . . . Propulsion Burnouts . | . . . . . . . . . . . . . . . . . . . . . . . . . Robots Hopped 18 | . . . . . . . . . . 2 . . . . . . . . 2 . . . . 14 Cave-ins Triggered . | . . . . . . . . . . . . . . . . . . . . . . . . . Exploration Rate (%) 41 | 5 34 46 36 3 94 14 82 2 58 40 70 72 11 53 63 70 89 34 10 13 61 5 47 37 Regions Visited 24 Branch Regions 9 Pre-discovered Areas 2 | . . . . . . . . . 1 . 1 . . . . . . . . . . . . . Known Exits Taken 6 | . . . . 1 . 1 . . . . . . 1 . . . . 1 . 1 . 1 . . Unknown Exits Taken 14 | 1 1 1 1 . . . . 1 1 1 1 1 . . 1 1 1 . 1 . 1 . . . Scrap Searched 5 | . . . . . . . . . . 1 . 4 . . . . . . . . . . . . Spaces Dug 40 | . . . . . . . 9 . . . . . . . 13 . . . . 4 6 . . 8 Terrain Destroyed 985 | . . . 30 . 8 57 82 . . 5 . 7 37 2 16 2 . 17 41 4 17 . . 660 Melee 18 | . . . . . . . . . . . . . . . . . . . . 4 6 . . 8 Projectile 49 | . . . . . . . . . . . . . . . 16 2 . 17 1 . 11 . . 2 AOE 917 | . . . 30 . 8 57 82 . . 5 . 7 37 2 . . . . 39 . . . . 650 Terrain Rammed . | . . . . . . . . . . . . . . . . . . . . . . . . . Walls Destroyed . | . . . . . . . . . . . . . . . . . . . . . . . . . Machines Disabled . | . . . . . . . . . . . . . . . . . . . . . . . . . Actions | -11 -10 -9 -8 -7 -7 -6 -6 -6 -6 -6 -6 -5 -5 -5 -5 -5 -5 -5 -4 -3 -3 -2 -2 -1 --------- Run | Scr Mat Mat Mat Fac DSF Fac Gar Fac Low Low Dat Pro Fac Gar Ext Cet Arc Hub Fac Res Qua Res DSF Acc Total 12662 | 63 220 493 490 98 215 804 1016 54 398 235 103 657 919 381 1033 230 161 260 568 697 811 215 41 2500 Wait 1126 | . 13 37 23 . 8 76 148 5 7 4 . 4 214 7 282 12 10 13 34 36 39 . . 154 Move 9809 | 53 161 374 358 98 147 655 691 48 367 210 97 625 571 342 625 181 135 195 429 577 567 207 34 2062 Hop 16 | . . . . . . . . . . 2 . . . . . . . . 1 . . . . 13 Pick Up 150 | 6 10 6 11 . 10 7 2 1 11 1 . 3 12 4 4 9 1 3 6 14 11 3 2 13 Fast Attach 177 | 4 . 2 3 . 6 1 11 . 1 1 3 2 9 4 2 3 . 5 26 18 22 2 1 51 Attach 107 | . 3 2 7 . 2 3 8 . . 3 . 2 17 1 1 . . 12 8 7 10 3 1 17 Detach 26 | . . . . . . . . . . . . . 7 . . . . 2 8 3 . . . 6 Swap 133 | . 4 7 8 . 8 12 19 . 3 1 . 6 6 5 13 6 6 3 4 7 11 . 1 3 Drop 154 | . 2 7 11 . 15 4 . . 5 2 3 3 7 7 12 14 5 1 10 6 20 . 1 19 Fire 772 | . 27 58 68 . 19 43 90 . 4 9 . 12 75 11 78 5 4 23 42 11 99 . . 94 Melee 104 | . . . . . . . . . . . . . . . . . . . . 18 17 . 1 68 Ram . | . . . . . . . . . . . . . . . . . . . . . . . . . Kick . | . . . . . . . . . . . . . . . . . . . . . . . . . Crush 22 | . . . 1 . . 1 . . . . . . 1 . 1 . . 3 . . 15 . . . Escape Stasis 1 | . . . . . . . . . . . . . . . 1 . . . . . . . . . Rewire 65 | . . . . . . 2 47 . . 2 . . . . 14 . . . . . . . . . Trap . | . . . . . . . . . . . . . . . . . . . . . . . . . Miscellaneous . | . . . . . . . . . . . . . . . . . . . . . . . . . Route ------- -11/Scrapyard -10/Materials -9/Materials (discovered 2 exits: *Mat / [*Min]) -8/Materials (discovered 2 exits: *Fac / [*Sto]) -7/Factory -7/DSF -6/Factory -6/Garrison (discovered 3 exits: *Fac x3) -6/Factory -6/Lower Caves -6/Lower Caves -6/Data Miner -5/Proximity Caves -5/Factory (discovered 2 exits: Fac / Gar) -5/Garrison (discovered 2 exits: *Ext x2) -5/Extension (discovered 2 exits: *Fac / *Cet) -5/Cetus (discovered 2 exits: *Fac / *Arc) -5/Archives (discovered 3 exits: *Fac / *Hub x2) -5/Hub_04(d) (discovered 2 exits: *Fac x2) -4/Factory -3/Research (discovered 3 exits: Arm / *Qua x2) -3/Quarantine -2/Research -2/DSF -1/Access (discovered 2 exits: Sur / [*Com]) History --------- Turn | Location | Event 24 | -11/Scrapyard | Discovered new exit (range 16) 94 | -11/Scrapyard | Entered Materials 152 | -10/Materials | Central database locked down 330 | -10/Materials | Build established: Mutant 438 | -10/Materials | Discovered new exit (range 8) 469 | -10/Materials | Entered another Materials area 469 | -9/Materials | Evolved 2 slots: Propulsion x1, Weapon x1 687 | -9/Materials | Discovered new exit (range 16) 787 | -9/Materials | Build established: Skirmisher 937 | -9/Materials | Discovered new exit (range 15) 1099 | -9/Materials | Entered another Materials area 1099 | -8/Materials | Evolved 2 slots: Utility x2 1503 | -8/Materials | Garrison activated, responded to threat 1544 | -8/Materials | Discovered new exit (range 5) 1618 | -8/Materials | Identified exit to Garrison 1634 | -8/Materials | Discovered new exit (range 10) 1939 | -8/Materials | Entered Factory 1939 | -7/Factory | Evolved 2 slots: Power x1, Propulsion x1 2079 | -7/Factory | Identified exit to DSF 2096 | -7/Factory | Entered DSF 2135 | -7/DSF | Additional patrols routed to DSF 2171 | -7/DSF | Lost 3 parts (1n2u) 2214 | -7/DSF | Found Corrupted Prototype Device 2214 | -7/DSF | Identified Active Sensor Suite 2225 | -7/DSF | System corruption reached 10% 2274 | -7/DSF | Discovered new exit (range 16) 2384 | -7/DSF | Sterilization system engaged 2404 | -7/DSF | Ambient heat levels rising (+10) 2419 | -7/DSF | Ambient heat levels rising (+10) 2434 | -7/DSF | Ambient heat levels rising (+10) 2449 | -7/DSF | Ambient heat levels rising (+10) 2452 | -7/DSF | Identified exit to Factory 2454 | -7/DSF | Entered Factory 2454 | -6/Factory | Evolved 2 slots: Power x1, Utility x1 2704 | -6/Factory | Build established: Scavenger-Mutant 3088 | -6/Factory | Build established: Scavenger-Skirmisher 3543 | -6/Factory | Repaired Arm. Treads? 3776 | -6/Factory | Identified exit to Garrison 3776 | -6/Factory | Entered Garrison 3906 | -6/Garrison | Discovered new exit (range 10) 4313 | -6/Garrison | Destroyed 8 combat bots 4370 | -6/Garrison | System corruption reached 10% 4543 | -6/Garrison | System corruption reached 30% 4615 | -6/Garrison | Lost 10 parts (2p5n1u2w) 4795 | -6/Garrison | Lost 3 parts (1p2w) 5135 | -6/Garrison | Discovered new exit (range 14) 5166 | -6/Garrison | Installed Relay Interface Framework 5204 | -6/Garrison | Build established: Scavenger-Tank 5335 | -6/Garrison | Garrison Relay disabled 5398 | -6/Garrison | Discovered new exit (range 14) 5448 | -6/Garrison | Entered Factory 5448 | -6/Factory | Accompanied by 6 allies 5499 | -6/Factory | Discovered new exit (range 12) 5534 | -6/Factory | Entered Lower Caves 5534 | -6/Lower Caves | Accompanied by 6 allies 5624 | -6/Lower Caves | Encountered a Warlord checkpoint 5790 | -6/Lower Caves | Spotted B-75 Beast 5814 | -6/Lower Caves | Allies destroyed B-75 Beast 5913 | -6/Lower Caves | Learned location of Extension (-5) 6100 | -6/Lower Caves | Discovered new exit (range 4) 6180 | -6/Lower Caves | Entered another Lower Caves area 6180 | -6/Lower Caves | Accompanied by 2 allies 6197 | -6/Lower Caves | Attracted the attention of an 0b10 checkpoint 6228 | -6/Lower Caves | Learned Factory garrison access intel 6322 | -6/Lower Caves | Lost 3 parts (1p1n1w) 6388 | -6/Lower Caves | Found Prototype Device 6577 | -6/Lower Caves | Discovered new exit (range 9) 6598 | -6/Lower Caves | Build established: Scavenger-Mutant 6600 | -6/Lower Caves | Entered Data Miner 6600 | -6/Data Miner | Accompanied by 2 allies 6602 | -6/Data Miner | Discovered new exit (range 6) 6633 | -6/Data Miner | Met Data Miner 6672 | -6/Data Miner | Learned location of Section 7 (-2) 6672 | -6/Data Miner | Acquired the access code to Warlord's prototype stash 6698 | -6/Data Miner | Received God Mode back door access code from Data Miner 6755 | -6/Data Miner | Data Conduit disabled 6764 | -6/Data Miner | Entered Proximity Caves 6764 | -5/Proximity Caves | Accompanied by 1 ally 6899 | -5/Proximity Caves | Attracted the attention of an 0b10 checkpoint 7049 | -5/Proximity Caves | Build established: Scavenger-Tank 7310 | -5/Proximity Caves | Learned 4 Factory zone layouts 7487 | -5/Proximity Caves | Build established: Scavenger-Mutant 8031 | -5/Proximity Caves | Build established: Scavenger-Tank 8226 | -5/Proximity Caves | Discovered new exit (range 16) 8268 | -5/Proximity Caves | Entered Factory 8268 | -5/Factory | Evolved 2 slots: Propulsion x1, Utility x1 8269 | -5/Factory | Identified exit to Factory 8270 | -5/Factory | Loaded intel: 4 garrison access locations 8276 | -5/Factory | Identified Heart of Steel 8284 | -5/Factory | Identified exit to DSF 8567 | -5/Factory | Lost 3 parts (2n1w) 8783 | -5/Factory | System corruption reached 10% 8800 | -5/Factory | Lost 3 parts (1p1n1w) 8922 | -5/Factory | Fabricated M-13 Machinist (x1) 9612 | -5/Factory | Build established: Scavenger-Gunner 9671 | -5/Factory | Heart of Steel transformed into Warbot 9750 | -5/Factory | Identified exit to Garrison 9757 | -5/Factory | Entered Garrison 9757 | -5/Garrison | Accompanied by 1 ally (Warbot) 9818 | -5/Garrison | Triggered checkpoint 9829 | -5/Garrison | Triggered checkpoint 9841 | -5/Garrison | Triggered checkpoint 9864 | -5/Garrison | Triggered checkpoint 9984 | -5/Garrison | Discovered new exit (range 9) 10115 | -5/Garrison | Discovered new exit (range 12) 10126 | -5/Garrison | Build established: Scavenger-Mutant 10141 | -5/Garrison | Expanded RIF knowledge: Coupler Efficiency 10182 | -5/Garrison | Triggered checkpoint 10200 | -5/Garrison | Garrison Relay disabled 10363 | -5/Garrison | Entered Extension 10363 | -5/Extension | Accompanied by 1 ally (Warbot) 10579 | -5/Extension | Rescued A7 10694 | -5/Extension | Rescued a captive Derelict 10796 | -5/Extension | Rescued a captive Derelict 10796 | -5/Extension | Rescued a captive Derelict 10830 | -5/Extension | Rescued a captive Derelict 10831 | -5/Extension | Rescued a captive Derelict 11264 | -5/Extension | System corruption reached 30% 11352 | -5/Extension | Build established: Commander-Mutant 11455 | -5/Extension | Discovered exit to Factory (range 10) 11456 | -5/Extension | Disrupted transfer network 11457 | -5/Extension | Discovered new exit (range 6) 11728 | -5/Extension | Build established: Commander-Tank 11815 | -5/Extension | Entered Cetus 11815 | -5/Cetus | Accompanied by 14 allies (A7) 11820 | -5/Cetus | Acquired a Cetus Manufacturing Module code from A7 11838 | -5/Cetus | Spotted Cetus Guard 11838 | -5/Cetus | Spotted Cetus Guard 11839 | -5/Cetus | Spotted Cetus Guard 11841 | -5/Cetus | Spotted Cetus Guard 11847 | -5/Cetus | Allies destroyed Cetus Guard 11854 | -5/Cetus | Allies destroyed Cetus Guard 11854 | -5/Cetus | Allies destroyed Cetus Guard 11854 | -5/Cetus | Allies destroyed Cetus Guard 11959 | -5/Cetus | Started Cetus Manufacturing Module 11984 | -5/Cetus | Manufactured an Enhanced Grunt 11986 | -5/Cetus | Escorted A7 to Cetus Mainframe 12009 | -5/Cetus | Manufactured an Enhanced Grunt 12019 | -5/Cetus | Discovered new exit (range 16) 12034 | -5/Cetus | Manufactured an Enhanced Grunt 12050 | -5/Cetus | Spotted Cetus Guard 12051 | -5/Cetus | Spotted Cetus Guard 12053 | -5/Cetus | Spotted Cetus Guard 12054 | -5/Cetus | Spotted Cetus Guard 12058 | -5/Cetus | Allies destroyed Cetus Guard 12059 | -5/Cetus | Manufactured an Enhanced Grunt 12059 | -5/Cetus | Allies destroyed Cetus Guard 12064 | -5/Cetus | Discovered exit to Factory (range 16) 12066 | -5/Cetus | Allies destroyed Cetus Guard 12067 | -5/Cetus | Allies destroyed Cetus Guard 12077 | -5/Cetus | Met Revision 17 12084 | -5/Cetus | Manufactured an Enhanced Grunt 12163 | -5/Cetus | Entered Archives 12163 | -5/Archives | Accompanied by 11 allies (A7) 12168 | -5/Archives | Received a hacking code to weaken MAIN.C 12226 | -5/Archives | Discovered exit to Factory (range 4) 12266 | -5/Archives | Discovered new exit (range 15) 12293 | -5/Archives | Discovered new exit (range 16) 12308 | -5/Archives | Unable to access archive contents 12327 | -5/Archives | Unable to access archive contents 12345 | -5/Archives | Unable to access archive contents 12361 | -5/Archives | Unable to access archive contents 12415 | -5/Archives | Entered Hub_04(d) 12415 | -5/Hub_04(d) | Accompanied by 7 allies 12456 | -5/Hub_04(d) | Build established: Scavenger-Tank 12516 | -5/Hub_04(d) | Discovered exit to Factory (range 15) 12518 | -5/Hub_04(d) | Garrison activated, responded to threat 12573 | -5/Hub_04(d) | Discovered exit to Factory (range 15) 12745 | -5/Hub_04(d) | Network Hub disabled 12748 | -5/Hub_04(d) | Spotted Lightning 12749 | -5/Hub_04(d) | Spotted Lightning 12749 | -5/Hub_04(d) | Spotted Lightning 12750 | -5/Hub_04(d) | Network Hub disabled 12762 | -5/Hub_04(d) | Spotted Lightning 12767 | -5/Hub_04(d) | Spotted Lightning 12767 | -5/Hub_04(d) | Spotted Lightning 12853 | -5/Hub_04(d) | Core integrity fell below 50% 12859 | -5/Hub_04(d) | Entered Factory 12859 | -4/Factory | Evolved 2 slots: Utility x2 12889 | -4/Factory | Lost 19 parts (2p4n8u5w) 13226 | -4/Factory | Lost 4 parts (1p1n2u) 13335 | -4/Factory | Discovered new exit (range 15) 13497 | -4/Factory | Build established: Scavenger-Mutant 13602 | -4/Factory | Cargo convoy interrupted 13602 | -4/Factory | Destroyed 7 combat bots 13610 | -4/Factory | Spotted Striker 13657 | -4/Factory | Destroyed Striker 13659 | -4/Factory | Lost 15 parts (3p4n4u4w) 13677 | -4/Factory | Core integrity fell below 50% 13695 | -4/Factory | Entered Research 13695 | -3/Research | Evolved 2 slots: Utility x2 13727 | -3/Research | Identified exit to Armory 13727 | -3/Research | Identified exit to Quarantine 13825 | -3/Research | Fabricated Adv. Heavy Treads (x2) 13895 | -3/Research | Revision forces began assault on 0b10 13945 | -3/Research | Met up with Revision 17++ 14040 | -3/Research | Found Unknown Protection 14040 | -3/Research | Identified Imp. Powered Armor 14279 | -3/Research | Spotted B-86 Titan 14395 | -3/Research | Research terminal network offline 14414 | -3/Research | Entered Quarantine 14452 | -3/Quarantine | Found Alien Artifact 14482 | -3/Quarantine | Identified Phase Armor 14673 | -3/Quarantine | Found Alien Artifact 14768 | -3/Quarantine | Found Alien Reactor 14841 | -3/Quarantine | Identified Subatomic Replicator 14841 | -3/Quarantine | Identified Matter Drive 14851 | -3/Quarantine | Met incapacitated Sigix Warrior 14851 | -3/Quarantine | Lockdown squad dispatched 14857 | -3/Quarantine | Acquired the access code to the Sigix quarantine chamber 14860 | -3/Quarantine | Unlocked Sigix quarantine chamber 14893 | -3/Quarantine | Spotted Lightning 14893 | -3/Quarantine | Spotted Lightning 14898 | -3/Quarantine | Spotted Lightning 14900 | -3/Quarantine | Cryocooling Duct disabled 14915 | -3/Quarantine | Ambient heat levels rising (+20) 14915 | -3/Quarantine | Non-combat units ordered to evacuate 14923 | -3/Quarantine | System corruption reached 10% 14963 | -3/Quarantine | Lost 5 parts (1p3u1w) 14991 | -3/Quarantine | System corruption reached 30% 15005 | -3/Quarantine | Destroyed Lightning 15007 | -3/Quarantine | Destroyed Lightning 15034 | -3/Quarantine | Lost 8 parts (1p1n4u2w) 15046 | -3/Quarantine | Destroyed Lightning 15099 | -3/Quarantine | Lost 4 parts (2n1u1w) 15339 | -3/Quarantine | Garrison activated, responded to threat 15476 | -3/Quarantine | Build established: Scavenger-Tank 15508 | -3/Quarantine | Discovered new exit (range 11) 15670 | -3/Quarantine | Spotted Alpha 7 15700 | -3/Quarantine | Found Alien Launcher 15700 | -3/Quarantine | Identified Sigix Terminator 15704 | -3/Quarantine | Core integrity fell below 50% 15732 | -3/Quarantine | Entered Research 15732 | -2/Research | Evolved 2 slots: Propulsion x1, Weapon x1 15743 | -2/Research | Spotted B-90 Cyclops 15747 | -2/Research | Lost 7 parts (2p2n3u) 15989 | -2/Research | Build established: Scavenger-Mutant 16052 | -2/Research | Identified exit to DSF 16052 | -2/Research | Entered DSF 16080 | -2/DSF | Discovered new exit (range 19) 16098 | -2/DSF | Additional patrols routed to DSF 16113 | -2/DSF | Entered Access 16113 | -1/Access | Evolved 2 slots: Utility x2 16349 | -1/Access | Build established: Scavenger-Tank 16658 | -1/Access | Lost 3 parts (1p1n1u) 16677 | -1/Access | Spotted B-99 Colossus 16860 | -1/Access | Build established: Scavenger-Mutant 16866 | -1/Access | System corruption reached 10% 16877 | -1/Access | Lost 6 parts (2p1n3u) 17048 | -1/Access | Discovered new exit (range 8) 17273 | -1/Access | Lost 6 parts (2p1n1u2w) 17409 | -1/Access | Spotted B-99 Colossus 17502 | -1/Access | Lost 7 parts (1n5u1w) 17530 | -1/Access | Garrison activated, responded to threat 17608 | -1/Access | Lost 7 parts (1p3n2u1w) 17692 | -1/Access | Lost 7 parts (1p3n1u2w) 17884 | -1/Access | System corruption reached 30% 17929 | -1/Access | Lost 4 parts (1u3w) 17967 | -1/Access | Core integrity fell below 50% 18080 | -1/Access | Found Prototype Slashing Weapon 18080 | -1/Access | Identified Nanosword 18219 | -1/Access | Identified exit to Surface 18468 | -1/Access | Fired Sigix Terminator 18468 | -1/Access | Destroyed self with Sigix Terminator Last Messages --------------- 18408_ ALERT: Suspicious activity at Terminal A001. Dispatching Investigation squad. 18416_ System corrupted: Heat flow error (+264). 18416_ Impulse Thruster Array destroyed. 18416_ Dropped Mic. Antimatter Reactor. 18424_ Impulse Thruster Array destroyed. 18424_ Dropped Lgt. Particle Reactor. 18424_ Dropped Railgun. 18432_ System corrupted: Matter fused (-6). 18443_ Adv. Target Analyzer destroyed. 18447_ System corrupted: Slammed into wall. 18453_ R-10 Processor collects Mic. Antimatter Reactor. 18457_ Impulse Thruster Array destroyed. 18457_ Dropped Mic. Antimatter Reactor. 18457_ Dropped Adv. Heat Sink. 18466_ System corrupted: Matter fused (-6). 18466_ System corrupted: Sigix Terminator failed to launch. 18468_ Sigix Terminator expended. 18468_ Adv. Target Analyzer destroyed. 18468_ Destroyed Adv. Target Analyzer. Map ----- +----------------------------------------------------+ | ?????????????????????????????????????????????????? | | ?????????????????????????????????????????????????? | | ?????????????????????????????????????????????????? | | ?????????????????????????????????????????????????? | | ?????????????????????????????????????????????????? | | ?????????????????????????????????????????????????? | | ?????????????????????????????????????????????????? | | ?????????????????????????????????????????????????? | | ?????????????????????????????????????????????????? | | ?????????????????????????????????????????????????? | | ?????????????????????????????????????????????????? | | ?????????????????????????????????????????????????? | | ???????????????????????????????? ????????????????? | | ??????????????????????????????? ??????????????? | | ???????????????????????????????;;;;;;????????????? | | ??????????????????????????????;;;;;;;????????????? | | ?????????????????????????????? ???????????? | | ????????????????????????????? ???????""""" | | ????????????????????????????? ;??????#"" | | ????????????????????????????; ;??????#"" | | ????????????????????????????; ;??????#"" | | ??????????????????????????? ; ; ?????#T | | ??????????????????????????? ; ; ?????#"" | | ??????????????????###????? ; ; ????#"" | | ??????????????????# ###;;;;;;;;;;;;;;;#####"" | | ??????????????????+ T @ | | ??????????????????# "" | | ??????????????????# ###;;;;;;;;;;;;;;;######### | | ??????????????????## ????;;;; ; ?????????? | | ???????????????????# ????? ; ; ?????????? | | ?????????????????????????? ; ;??????????? | | ??????????????????????????? ; ;??????????? | | ??????????????????????????? ; ;??????????? | | ???????????????????????????Y ; #??????????? | | ???????????????????????????" ; #??????????? | | ????????????????????????????"; #??????????? | | ???????????????????????????? ; #??????????? | | ?????????????????????????????;;;;;;####??????????? | | ?????????????????????????????? ????????????????? | | ?????????????????????????????????????????????????? | | ?????????????????????????????????????????????????? | | ?????????????????????????????????????????????????? | | ?????????????????????????????????????????????????? | | ?????????????????????????????????????????????????? | | ????????????????????????????????????????????###### | | ????????????????????????????????????????????# ! | | ????????????????????????????????????????????# | | ????????????????????????????????????????????# | | ????????????????????????????????????????????# | | ??????????????????????????##????????????????# | +----------------------------------------------------+ Best States ------------- Heat Dissipation 135 Coolant Potential 100 Energy Generation 65 Energy Capacity 755 Matter Stores 300 Matter Capacity 300 Sight Range 20 Robot Scan Range 20 Terrain Scan Density 210 ECM Strength 2 Jamming Range 16 Power Amplification 20 Additional Mass Support 9 Armor Coverage 3600 Resistance: KI 30 Power Shielding 66 Weapon Shielding 66 Phase Shifting 10 Evasion (%) 77 Target Analysis 12 Recoil Reduction 6 Offensive Hacking 22 Defensive Hacking 22 Relay Coupler Types 2 Relay Coupler Value 51 Authchip Count 5 Item Schematics ----------------- Welding Torch | -9/Materials | Hacked Hacking Suite | -8/Materials | Hacked Combat Drone Bay | -6/Data Miner | Free Lgt. Regenerative Plating | -6/Data Miner | Free Cld. Nuclear Pulse Thruster | -6/Data Miner | Free Imp. Energy Well | -6/Data Miner | Free Hvy. Gatling Laser | -6/Data Miner | Free Imp. Linear Gravjet | -6/Data Miner | Free Imp. Force Booster | -6/Data Miner | Free Hvy. Gauss Cannon | -6/Data Miner | Free Phase Gun | -6/Data Miner | Free Adv. Heavy Treads | -6/Data Miner | Free Adv. Shield Generator | -5/Extension | Hacked HERF Cannon | -4/Factory | Scanalyzed Impulse Thruster Array | -3/Research | Hacked Cld. Field Propulsion Drive | -3/Quarantine | Archive Exp. Energy Well | -3/Quarantine | Archive Cld. Antimatter Reactor | -3/Quarantine | Archive Lrn. Phase Cannon | -3/Quarantine | Archive Adv. Transmission Jammer | -3/Quarantine | Scanalyzed Hvy. Wave Gun | -3/Quarantine | Archive Robot Schematics ------------------ O-16 Technician | -10/Materials | Hacked M-13 Machinist | -9/Materials | Hacked T-07 Excavator | -9/Materials | Hacked K-01 Serf | -9/Materials | Hacked Y-54 Guardian | -6/Data Miner | Free E-15 Imp | -6/Data Miner | Free G-50 Soldier | -6/Data Miner | Free A-15 Conveyor | -5/Extension | Hacked P-70 Sage | -3/Quarantine | Archive M-36 Artificer | -3/Quarantine | Archive Fabricated ------------ M-13 Machinist | x1 | -5/Factory Adv. Heavy Treads | x2 | -3/Research Alien Tech Used ----------------- Phase Armor Sigix Terminator Matter Drive Achievements -------------- None Challenges ------------ None Game ------ Seed LinkedMyomerScreen Manual? 0 Play Time 03:52:08 Cumulative 264.7 hours Start 2022.10.15 @ 21:41:12 End 2022.10.16 @ 18:01:54 Sessions 3 Manual Loads 0 Difficulty Rogue Special Mode None Game No. 181 Rogue 178 Adventurer 3 Explorer 0 Win Type - Total 4 Types 3/0/1/0/0/0/0/0/0 Lore% 71 Gallery% 74 Achievement% 63 Wizard Run 0 Options --------- ASCII 0 Keyboard 0 Movement Numpad Keybinds 0 Fullscreen 1 Font 18/SmallcapsGlow Map View 76x50 Tactical HUD 1 Map Filters NONE Filters NONE Steam 1 RUN: e9582310-be47-4c11-9074-874e72941567